fUST/lending_fUST_20241105
["ID","MTS","AMOUNT","RATE_DAILY","PERIOD"]
[341300046,1730745043462,-500.0,0.00031329,3]
[341300047,1730745043472,-643.17,0.00031329,3]
[341300048,1730745043481,-571.23020818,0.00031329,3]
[341300049,1730745043492,-500.0,0.00031329,3]
[341300050,1730745043503,-500.0,0.00031329,3]
[341300051,1730745043582,-500.0,0.00031329,3]
[341300052,1730745043591,-500.0,0.00031329,3]
[341300053,1730745043601,-500.0,0.00031329,3]
[341300054,1730745043611,-500.0,0.00031329,3]
[341300055,1730745043620,-500.0,0.00031329,2]
[341300056,1730745043629,-500.0,0.00031329,3]
[341300057,1730745043638,-500.0,0.00031329,3]
[341300058,1730745043647,-291.39,0.00031329,3]
[341300059,1730745043656,-500.0,0.00031329,3]
[341300060,1730745043665,-500.0,0.00031329,3]
[341300061,1730745043674,-500.0,0.00031329,3]
[341300062,1730745043684,-500.0,0.00031329,3]
[341300063,1730745043694,-500.0,0.00031329,3]
[341300064,1730745043703,-500.0,0.00031329,3]
[341300065,1730745043712,-500.0,0.00031329,3]
[341300066,1730745043721,-500.0,0.00031329,3]
[341300067,1730745043731,-500.0,0.00031329,3]
[341300068,1730745043740,-500.0,0.00031329,3]
[341300069,1730745043752,-500.0,0.00031329,3]
[341300070,1730745043761,-500.0,0.00031329,3]
[341300071,1730745043771,-500.0,0.00031329,3]
[341300072,1730745043780,-500.0,0.00031329,3]
[341300073,1730745043789,-500.0,0.00031329,3]
[341300074,1730745043798,-500.0,0.00031329,3]
[341300075,1730745043810,-500.0,0.00031329,3]
[341300076,1730745043819,-500.0,0.00031329,3]
[341300077,1730745043828,-500.0,0.00031329,3]
[341300078,1730745043838,-244.98,0.00031329,3]
[341300079,1730745043847,-500.0,0.00031329,3]
[341300080,1730745043857,-500.0,0.00031329,3]
[341300081,1730745043870,-500.0,0.00031329,3]
[341300082,1730745043879,-500.0,0.00031329,3]
[341300083,1730745043888,-500.0,0.00031329,3]
[341300084,1730745043897,-500.0,0.00031329,3]
[341300085,1730745043908,-500.0,0.00031329,3]
[341300086,1730745043917,-500.0,0.00031329,3]
[341300087,1730745043926,-500.0,0.0003133,3]
[341300088,1730745043936,-525.90689561,0.0003133,3]
[341300089,1730745043946,-500.0,0.0003133,3]
[341300090,1730745043956,-470.90974741,0.0003133,3]
[341300091,1730745043966,-1857.54,0.0003133,2]
[341300092,1730745043975,-500.0,0.0003133,3]
[341300093,1730745043985,-500.0,0.0003133,3]
[341300094,1730745043995,-500.0,0.0003133,3]
[341300095,1730745044005,-500.0,0.0003133,3]
[341300096,1730745044015,-500.0,0.0003133,3]
[341300097,1730745044024,-209.32865252,0.0003133,3]
[341300098,1730745044034,-500.0,0.0003133,3]
[341300099,1730745044049,-500.0,0.0003133,3]
[341300100,1730745044060,-500.0,0.0003133,3]
[341300101,1730745044070,-500.0,0.0003133,3]
[341300102,1730745044080,-500.0,0.0003133,3]
[341300103,1730745044089,-500.0,0.0003133,3]
[341300104,1730745044098,-502.08717726,0.0003133,3]
[341300105,1730745044107,-500.0,0.0003133,3]
[341300106,1730745044117,-500.0,0.0003133,3]
[341300107,1730745044126,-500.0,0.0003133,3]
[341300108,1730745044136,-500.0,0.0003133,3]
[341300109,1730745044145,-500.0,0.0003133,3]
[341300110,1730745044155,-500.0,0.0003133,3]
[341300111,1730745044165,-500.0,0.0003133,3]
[341300112,1730745044175,-500.0,0.0003133,3]
[341300113,1730745044185,-500.0,0.0003133,3]
[341300114,1730745044195,-500.0,0.0003133,3]
[341300115,1730745044205,-500.0,0.0003133,3]
[341300116,1730745044215,-500.0,0.0003133,3]
[341300117,1730745044225,-500.0,0.0003133,3]
[341300118,1730745044235,-500.0,0.0003133,3]
[341300119,1730745044244,-500.0,0.0003133,3]
[341300120,1730745044256,-500.0,0.0003133,3]
[341300121,1730745044266,-500.0,0.0003133,3]
[341300122,1730745044276,-500.0,0.0003133,3]
[341300123,1730745044286,-516.88035296,0.0003133,3]
[341300124,1730745044296,-500.0,0.0003133,3]
[341300125,1730745044306,-151.0,0.0003133,7]
[341300126,1730745044317,-271.042924,0.0003133,7]
[341300127,1730745044327,-151.0,0.0003133,7]
[341300128,1730745044337,-244.45376,0.0003133,7]
[341300129,1730745044347,-244.45376,0.0003133,7]
[341300130,1730745044356,-151.0,0.0003133,7]
[341300131,1730745044366,-151.0,0.0003133,7]
[341300132,1730745044376,-500.0,0.0003133,3]
[341300133,1730745044386,-151.0,0.0003133,7]
[341300134,1730745044395,-151.0,0.0003133,7]
[341300135,1730745044410,-500.0,0.0003133,3]
[341300136,1730745044419,-151.0,0.0003133,7]
[341300137,1730745044429,-500.0,0.0003133,3]
[341300138,1730745044439,-500.0,0.0003133,3]
[341300139,1730745044448,-500.0,0.0003133,3]
[341300140,1730745044457,-403.68720099,0.0003133,3]
[341300141,1730745044467,-151.0,0.0003133,7]
[341300142,1730745044476,-151.0,0.0003133,7]
[341300143,1730745044486,-177.373296,0.0003133,7]
[341300144,1730745044495,-151.0,0.0003133,7]
[341300145,1730745044506,-500.0,0.0003133,3]
[341300146,1730745044515,-151.0,0.0003133,7]
[341300147,1730745044524,-500.0,0.0003133,3]
[341300148,1730745044534,-151.0,0.0003133,7]
[341300149,1730745044544,-151.0,0.0003133,7]
[341300150,1730745044553,-151.0,0.0003133,7]
[341300151,1730745044563,-151.0,0.0003133,7]
[341300152,1730745044573,-187.13508648,0.0003133,3]
[341300153,1730745044583,-500.0,0.00031331,3]
[341300154,1730745044593,-500.0,0.00031331,3]
[341300155,1730745044602,-500.0,0.00031331,3]
[341300156,1730745044611,-151.0,0.00031331,7]
[341300157,1730745044621,-151.0,0.00031331,7]
[341300158,1730745044630,-151.0,0.00031331,7]
[341300159,1730745044640,-151.0,0.00031331,7]
[341300160,1730745044649,-151.0,0.00031331,7]
[341300161,1730745044658,-151.0,0.00031331,7]
[341300162,1730745044668,-151.0,0.00031331,7]
[341300163,1730745044678,-151.0,0.00031331,7]
[341300164,1730745044687,-151.0,0.00031331,7]
[341300165,1730745044697,-151.0,0.00031331,7]
[341300166,1730745044706,-151.0,0.00031331,7]
[341300167,1730745044716,-237.878878,0.00031331,7]
[341300168,1730745044726,-1857.54,0.00031351,2]
[341300169,1730745044735,-1857.54,0.00031351,2]
[341300170,1730745044745,-1857.54,0.00031351,2]
[341300171,1730745044755,-151.0,0.00031351,7]
[341300172,1730745044765,-151.0,0.00031351,7]
[341300173,1730745044774,-151.0,0.00031351,7]
[341300174,1730745044784,-500.0,0.00031352,3]
[341300175,1730745044793,-470.52402095,0.00031352,3]
[341300176,1730745044802,-500.0,0.00031352,3]
[341300177,1730745044811,-151.0,0.00031352,7]
[341300178,1730745044821,-384.4792123,0.00031373,5]
[341300179,1730745044830,-167.092768,0.00031386,2]
[341300180,1730745044840,-748.672598,0.00031386,2]
[341300181,1730745044849,-157.856239,0.00031386,2]
[341300182,1730745044860,-500.0,0.00031601,3]
[341300183,1730745044873,-280.72,0.00031601,3]
[341300184,1730745044882,-500.0,0.00031601,3]
[341300185,1730745044892,-500.0,0.00031601,3]
[341300186,1730745044902,-8521.78,0.00031601,3]
[341300187,1730745044912,-500.0,0.00031601,3]
[341300188,1730745044923,-211.15,0.00031602,3]
[341300189,1730745044933,-173.35,0.00031602,3]
[341300190,1730745044944,-500.0,0.00031602,3]
[341300191,1730745044955,-500.0,0.00031602,3]
[341300192,1730745044965,-500.0,0.00031602,3]
[341300193,1730745044974,-500.0,0.00031602,3]
[341300194,1730745044984,-500.0,0.00031602,3]
[341300195,1730745044995,-1928.72,0.00031602,3]
[341300196,1730745045007,-500.0,0.00031603,3]
[341300197,1730745045016,-500.0,0.00031603,3]
[341300198,1730745045025,-500.0,0.00031603,3]
[341300199,1730745045035,-500.0,0.00031603,3]
[341300200,1730745045044,-500.0,0.00031603,3]
[341300201,1730745045054,-500.0,0.00031603,3]
[341300202,1730745045063,-500.0,0.00031603,3]
[341300203,1730745045072,-500.0,0.00031603,3]
[341300204,1730745045083,-500.0,0.00031603,3]
[341300205,1730745045093,-500.0,0.00031603,3]
[341300206,1730745045103,-500.0,0.00031603,3]
[341300207,1730745045113,-500.0,0.00031603,3]
[341300208,1730745045122,-500.0,0.00031603,3]
[341300209,1730745045132,-500.0,0.00031603,3]
[341300210,1730745045141,-500.0,0.00031603,3]
[341300211,1730745045151,-500.0,0.00031603,3]
[341300212,1730745045160,-500.0,0.00031603,2]
[341300213,1730745045170,-500.0,0.00031603,3]
[341300214,1730745045179,-500.0,0.00031603,3]
[341300215,1730745045188,-500.0,0.00031603,3]
[341300216,1730745045199,-500.0,0.00031603,3]
[341300217,1730745045210,-500.0,0.00031603,3]
[341300218,1730745045220,-500.0,0.00031603,3]
[341300219,1730745045231,-218.28,0.00031603,3]
[341300220,1730745045240,-500.0,0.00031603,3]
[341300221,1730745045251,-500.0,0.00031603,3]
[341300222,1730745045261,-500.0,0.00031603,3]
[341300223,1730745045271,-568.29,0.00031603,3]
[341300224,1730745045282,-500.0,0.00031603,3]
[341300225,1730745045292,-500.0,0.00031603,3]
[341300226,1730745045302,-500.0,0.00031603,3]
[341300227,1730745045312,-500.0,0.00031603,3]
[341300228,1730745045322,-500.0,0.00031603,3]
[341300229,1730745045331,-500.0,0.00031603,3]
[341300230,1730745045341,-500.0,0.00031603,3]
[341300231,1730745045350,-500.0,0.00031603,3]
[341300232,1730745045360,-500.0,0.00031603,3]
[341300233,1730745045370,-500.0,0.00031603,3]
[341300234,1730745045379,-500.0,0.00031603,3]
[341300235,1730745045389,-500.0,0.00031603,3]
[341300236,1730745045399,-500.0,0.00031604,3]
[341300237,1730745045408,-505.18047515,0.00031604,3]
[341300238,1730745045418,-1857.54,0.00031604,2]
[341300239,1730745045428,-151.0,0.00031604,7]
[341300240,1730745045437,-500.0,0.00031604,3]
[341300241,1730745045448,-500.0,0.00031604,3]
[341300242,1730745045458,-500.0,0.00031604,3]
[341300243,1730745045468,-500.0,0.00031604,3]
[341300244,1730745045477,-500.0,0.00031604,3]
[341300245,1730745045560,-151.0,0.00031604,2]
[341300246,1730745045570,-151.0,0.00031604,7]
[341300247,1730745045581,-500.0,0.00031604,3]
[341300248,1730745045591,-500.0,0.00031604,3]
[341300250,1730745045601,-500.0,0.00031604,3]
[341300251,1730745045612,-502.55,0.00031604,3]
[341300252,1730745045622,-500.0,0.00031604,3]
[341300253,1730745045632,-500.0,0.00031604,3]
[341300254,1730745045642,-500.0,0.00031604,3]
[341300255,1730745045652,-500.0,0.00031604,3]
[341300256,1730745045663,-500.0,0.00031604,3]
[341300257,1730745045674,-416.57147173,0.00031604,3]
[341300258,1730745045685,-500.0,0.00031604,3]
[341300259,1730745045695,-500.0,0.00031604,3]
[341300260,1730745045706,-500.0,0.00031604,3]
[341300261,1730745045716,-500.0,0.00031604,3]
[341300262,1730745045726,-94.78009555,0.00031604,3]
[341300264,1730745047171,186.0,0.0003,2]
[341300265,1730745102061,756.97018143,0.0002985,8]
[341300266,1730745303453,966.5,0.00033667,30]
[341300267,1730745531782,150.0,0.00033659,120]
[341300268,1730745716783,175.92965,0.00013973,2]
[341300273,1730746027139,-175.92965,0.00020447,2]
[341300274,1730746027160,-191.98488344,0.00026821,2]
[341300275,1730746027186,-175.92965,0.00026921,2]
[341300276,1730746027207,-300.0,0.00027586,2]
[341300277,1730746027231,-429.78661853,0.00027587,2]
[341300278,1730746027256,-500.0,0.00027587,2]
[341300279,1730746027278,-467.18331147,0.00027587,2]
[341300280,1730746027302,-392.65749881,0.00027587,2]
[341300281,1730746027324,-3229.15860989,0.00027588,2]
[341300282,1730746032141,-325.66792864,0.00027588,2]
[341300283,1730746150112,-300.0,0.00027587,2]
[341300284,1730746150136,-300.0,0.00027587,2]
[341300285,1730746150158,-3294.49633693,0.00027588,2]
[341300286,1730746164106,-202.06363352,0.00027588,2]
[341300472,1730746244379,-300.0,0.00027587,2]
[341300474,1730746244389,-300.0,0.00027587,2]
[341300476,1730746244399,-795.75018642,0.00027588,2]
[341300478,1730746244411,-13837.5752722,0.00027588,2]
[341300480,1730746244420,-1342.25718178,0.00028188,2]
[341300482,1730746244430,-785.913849,0.00028288,2]
[341300484,1730746244441,-502.0,0.00028897,2]
[341300486,1730746244451,-785.913849,0.00028973,2]
[341300488,1730746244460,-785.913849,0.00029658,2]
[341300490,1730746244470,-420.0,0.00029806,2]
[341300492,1730746244479,-151.0,0.0003,120]
[341300493,1730746244489,-163.0,0.0003,2]
[341300495,1730746244501,-151.0,0.0003,120]
[341300498,1730746244513,-192.1115562,0.00030036,2]
[341300500,1730746244533,-4775.78148726,0.00030036,2]
[341300501,1730746244548,-221.65299147,0.00030135,2]
[341300504,1730746244558,-268.33626114,0.00030136,7]
[341300506,1730746244568,-500.0,0.00030136,3]
[341300508,1730746244578,-500.0,0.00030136,3]
[341300510,1730746244588,-500.0,0.00030136,3]
[341300512,1730746244597,-500.0,0.00030136,3]
[341300514,1730746244607,-500.0,0.00030136,3]
[341300516,1730746244622,-577.51721989,0.00030136,3]
[341300518,1730746244635,-509.82818651,0.00030136,3]
[341300519,1730746244644,-511.36355243,0.00030136,3]
[341300521,1730746244653,-500.0,0.00030136,3]
[341300523,1730746244662,-500.0,0.00030136,2]
[341300526,1730746244672,-500.0,0.00030136,3]
[341300528,1730746244682,-500.0,0.00030136,3]
[341300530,1730746244691,-500.0,0.00030136,3]
[341300532,1730746244702,-500.0,0.00030136,3]
[341300534,1730746244711,-616.33870394,0.00030136,3]
[341300536,1730746244722,-478.14100243,0.00030136,3]
[341300538,1730746244731,-500.0,0.00030136,3]
[341300540,1730746244742,-500.0,0.00030136,3]
[341300542,1730746244751,-1144.49,0.00030136,3]
[341300544,1730746244761,-468.48352371,0.00030136,3]
[341300546,1730746244771,-500.0,0.00030136,3]
[341300548,1730746244780,-500.0,0.00030136,3]
[341300550,1730746244790,-1853.64,0.00030136,3]
[341300552,1730746244800,-521.10292467,0.00030136,3]
[341300554,1730746244810,-500.0,0.00030136,3]
[341300556,1730746244819,-500.0,0.00030136,3]
[341300558,1730746244829,-518.34946498,0.00030136,3]
[341300560,1730746244838,-506.01827425,0.00030136,3]
[341300562,1730746244848,-500.0,0.00030136,3]
[341300564,1730746244857,-500.0,0.00030136,3]
[341300565,1730746244867,-500.0,0.00030136,3]
[341300567,1730746244877,-500.0,0.00030136,3]
[341300569,1730746244886,-500.0,0.00030136,3]
[341300571,1730746244896,-500.0,0.00030136,3]
[341300573,1730746244905,-500.0,0.00030136,3]
[341300576,1730746244915,-500.0,0.00030136,3]
[341300578,1730746244925,-348.89,0.00030136,3]
[341300580,1730746244935,-500.0,0.00030136,3]
[341300582,1730746244946,-500.0,0.00030136,3]
[341300584,1730746244955,-500.0,0.00030136,3]
[341300586,1730746244969,-500.0,0.00030136,3]
[341300588,1730746244979,-500.0,0.00030136,3]
[341300590,1730746244988,-503.69682529,0.00030136,3]
[341300592,1730746244998,-500.0,0.00030136,3]
[341300594,1730746245008,-500.0,0.00030136,3]
[341300596,1730746245017,-500.0,0.00030136,3]
[341300598,1730746245026,-500.0,0.00030136,3]
[341300600,1730746245036,-500.0,0.00030136,3]
[341300602,1730746245046,-500.0,0.00030136,3]
[341300604,1730746245056,-500.0,0.00030136,3]
[341300606,1730746245065,-1242.49,0.00030136,2]
[341300608,1730746245075,-1242.49,0.00030136,2]
[341300610,1730746245085,-500.0,0.00030136,3]
[341300612,1730746245095,-500.0,0.00030136,3]
[341300614,1730746245104,-8696.46,0.00030136,3]
[341300616,1730746245114,-500.00452811,0.00030136,3]
[341300618,1730746245124,-307.01170708,0.00030137,2]
[341300620,1730746245135,-420.0,0.00030345,2]
[341300622,1730746245145,-1242.49,0.00030409,2]
[341300624,1730746245154,-430.131338,0.0003041,3]
[341300626,1730746245164,-500.0,0.0003041,2]
[341300629,1730746245175,-500.0,0.0003041,3]
[341300631,1730746245185,-500.0,0.0003041,3]
[341300633,1730746245196,-500.0,0.0003041,3]
[341300635,1730746245205,-500.0,0.0003041,3]
[341300637,1730746245216,-1144.49,0.0003041,3]
[341300639,1730746245230,-1853.64,0.0003041,3]
[341300641,1730746245240,-500.0,0.0003041,3]
[341300643,1730746245251,-500.0,0.0003041,3]
[341300645,1730746245261,-500.0,0.0003041,3]
[341300647,1730746245274,-500.0,0.0003041,3]
[341300649,1730746245284,-535.35,0.0003041,3]
[341300651,1730746245295,-500.0,0.0003041,3]
[341300653,1730746245307,-500.0,0.0003041,3]
[341300655,1730746245320,-322.24987952,0.0003041,3]
[341300657,1730746245330,-500.0,0.0003041,3]
[341300659,1730746245340,-277.08,0.0003041,3]
[341300661,1730746245350,-500.0,0.0003041,3]
[341300663,1730746245360,-500.0,0.0003041,3]
[341300665,1730746245370,-500.0,0.0003041,3]
[341300667,1730746245379,-500.0,0.0003041,3]
[341300683,1730746245520,-500.0,0.0003041,3]
[341300685,1730746245538,-500.0,0.0003041,3]
[341300687,1730746245548,-8696.46,0.0003041,3]
[341300689,1730746245558,-168.574,0.00030411,26]
[341300691,1730746245569,-163.0,0.00030411,2]
[341300693,1730746245579,-674.01,0.00030674,3]
[341300695,1730746245589,-290.77,0.00030674,10]
[341300697,1730746245599,-500.0,0.00030684,2]
[341300699,1730746245609,-500.0,0.00030684,3]
[341300701,1730746245618,-500.0,0.00030684,3]
[341300703,1730746245629,-359.08,0.00030684,3]
[341300705,1730746245640,-1144.49,0.00030684,3]
[341300707,1730746245650,-1853.64,0.00030684,3]
[341300709,1730746245659,-530.54,0.00030684,3]
[341300711,1730746245670,-331.86,0.00030684,3]
[341300713,1730746245679,-500.0,0.00030684,3]
[341300714,1730746245690,-500.0,0.00030684,3]
[341300716,1730746245700,-436.14103738,0.00030684,3]
[341300718,1730746245710,-500.0,0.00030684,3]
[341300720,1730746245719,-500.0,0.00030684,3]
[341300722,1730746245729,-500.0,0.00030684,3]
[341300724,1730746245739,-8696.46,0.00030684,3]
[341300725,1730746245750,-500.0,0.00030773,5]
[341300726,1730746245759,-1242.49,0.00030777,2]
[341300727,1730746245769,-1242.49,0.00030778,2]
[341300728,1730746245780,-500.0,0.00030779,3]
[341300729,1730746245791,-500.0,0.00030779,3]
[341300730,1730746245801,-500.0,0.00030779,3]
[341300731,1730746245811,-500.0,0.00030779,3]
[341300732,1730746245821,-500.0,0.00030779,3]
[341300733,1730746245831,-500.0,0.00030779,3]
[341300735,1730746245842,-500.0,0.00030779,3]
[341300737,1730746245853,-250.0,0.00030779,3]
[341300739,1730746245863,-500.0,0.00030779,3]
[341300741,1730746245874,-500.0,0.00030779,3]
[341300743,1730746245884,-500.0,0.00030779,3]
[341300745,1730746245895,-500.0,0.00030779,3]
[341300747,1730746245905,-500.0,0.00030779,3]
[341300749,1730746245915,-500.0,0.00030779,3]
[341300751,1730746245925,-493.38836963,0.00030779,3]
[341300753,1730746245934,-405.21990445,0.00030779,3]
[341300755,1730746245947,-500.0,0.00030779,3]
[341300757,1730746245958,-500.0,0.00030779,3]
[341300759,1730746245968,-500.0,0.00030779,3]
[341300762,1730746245979,-500.0,0.00030779,3]
[341300764,1730746245988,-594.49629988,0.00030779,3]
[341300766,1730746245998,-500.0,0.00030779,3]
[341300768,1730746246008,-500.0,0.00030779,3]
[341300770,1730746246018,-500.0,0.00030779,3]
[341300772,1730746246027,-500.0,0.00030779,3]
[341300774,1730746246037,-500.49158246,0.00030779,3]
[341300776,1730746246046,-500.0,0.00030779,3]
[341300778,1730746246056,-516.96457925,0.00030779,3]
[341300780,1730746246066,-506.23543507,0.00030779,3]
[341300782,1730746246076,-500.0,0.00030779,3]
[341300784,1730746246087,-500.0,0.00030779,3]
[341300786,1730746246096,-508.34112748,0.00030779,3]
[341300788,1730746246105,-500.0,0.00030779,3]
[341300790,1730746246115,-500.0,0.00030779,3]
[341300792,1730746246124,-530.98343532,0.00030779,3]
[341300794,1730746246135,-500.0,0.00030779,3]
[341300796,1730746246145,-500.0,0.00030779,3]
[341300798,1730746246155,-516.19487388,0.00030779,3]
[341300800,1730746246165,-500.0,0.00030779,3]
[341300802,1730746246175,-500.0,0.00030779,3]
[341300804,1730746246185,-517.27516836,0.00030779,3]
[341300806,1730746246198,-500.0,0.00030779,3]
[341300808,1730746246208,-528.40258773,0.00030779,3]
[341300810,1730746246221,-500.0,0.00030779,3]
[341300812,1730746246232,-509.57960337,0.00030779,3]
[341300814,1730746246243,-194.11201751,0.00030779,3]
[341300816,1730746246253,-510.41126386,0.00030779,3]
[341300819,1730746246264,-500.0,0.00030779,3]
[341300821,1730746246275,-500.0,0.00030779,3]
[341300823,1730746246285,-500.0,0.00030779,3]
[341300825,1730746246296,-500.0,0.00030779,3]
[341300827,1730746246307,-500.0,0.00030779,3]
[341300829,1730746246317,-500.0,0.00030779,3]
[341300831,1730746246326,-500.0,0.00030779,3]
[341300833,1730746246338,-616.10679127,0.00030779,3]
[341300835,1730746246349,-1242.49,0.00030781,2]
[341300838,1730746246359,-500.0,0.00030782,3]
[341300840,1730746246369,-500.0,0.00030958,2]
[341300841,1730746246378,-500.0,0.00030958,3]
[341300844,1730746246388,-500.0,0.00030958,3]
[341300845,1730746246397,-1144.49,0.00030958,3]
[341300848,1730746246406,-1853.64,0.00030958,3]
[341300850,1730746246416,-500.0,0.00030958,3]
[341300853,1730746246425,-439.56193409,0.00030958,3]
[341300855,1730746246435,-500.0,0.00030958,3]
[341300857,1730746246448,-561.9,0.00030958,3]
[341300859,1730746246463,-500.0,0.00030958,3]
[341300860,1730746246472,-8696.46,0.00030958,3]
[341300862,1730746246482,-1242.49,0.00031052,2]
[341300865,1730746246492,-500.0,0.00031053,3]
[341300867,1730746246502,-500.0,0.00031053,3]
[341300869,1730746246511,-500.0,0.00031053,3]
[341300871,1730746246521,-516.8,0.00031053,3]
[341300873,1730746246531,-500.0,0.00031053,3]
[341300875,1730746246541,-500.0,0.00031053,3]
[341300877,1730746246551,-500.0,0.00031053,3]
[341300879,1730746246562,-337.1755131,0.00031053,3]
[341300881,1730746246572,-213.04217719,0.00031053,3]
[341300883,1730746246582,-388.79285828,0.00031053,3]
[341300885,1730746246592,-500.0,0.00031053,3]
[341300887,1730746246602,-396.39757816,0.00031053,3]
[341300889,1730746246611,-500.0,0.00031053,3]
[341300890,1730746246620,-500.0,0.00031053,3]
[341300892,1730746246630,-510.44696998,0.00031053,3]
[341300894,1730746246639,-500.0,0.00031053,3]
[341300896,1730746246649,-325.93370563,0.00031053,3]
[341300899,1730746246658,-500.0,0.00031053,3]
[341300901,1730746246668,-500.0,0.00031053,3]
[341300902,1730746246677,-500.20620122,0.00031053,3]
[341300904,1730746246687,-500.0,0.00031053,3]
[341300906,1730746246701,-1242.49,0.00031231,2]
[341300909,1730746246711,-532.78529606,0.00031232,2]
[341300911,1730746246722,-500.0,0.00031232,3]
[341300913,1730746246732,-500.0,0.00031232,3]
[341300915,1730746246742,-1144.49,0.00031232,3]
[341300917,1730746246752,-1853.64,0.00031232,3]
[341300919,1730746246762,-500.0,0.00031232,3]
[341300921,1730746246771,-500.0,0.00031232,3]
[341300923,1730746246781,-500.0,0.00031232,3]
[341300925,1730746246790,-8696.46,0.00031232,3]
[341300927,1730746246801,-500.0,0.00031327,3]
[341300929,1730746246811,-516.75817939,0.00031327,3]
[341300931,1730746246821,-500.0,0.00031327,3]
[341300933,1730746246831,-500.0,0.00031327,3]
[341300935,1730746246840,-185.389682,0.00031386,2]
[341300937,1730746246850,-1242.49,0.00031505,2]
[341300939,1730746246860,-500.0,0.00031506,3]
[341300941,1730746246870,-500.0,0.00031506,3]
[341300943,1730746246881,-1144.49,0.00031506,3]
[341300945,1730746246891,-1853.64,0.00031506,3]
[341300948,1730746246903,-610.48,0.00031506,3]
[341300950,1730746246912,-500.0,0.00031506,3]
[341300952,1730746246922,-500.0,0.00031506,3]
[341300954,1730746246932,-8696.46,0.00031506,3]
[341300956,1730746246944,-213.41250957,0.00031567,5]
[341300958,1730746246954,-500.0,0.00031601,3]
[341300960,1730746246963,-500.0,0.00031601,3]
[341300962,1730746246974,-633.47296031,0.00031601,3]
[341300964,1730746246983,-163.0,0.00031644,2]
[341300966,1730746246993,-519.06919613,0.00031656,5]
[341300968,1730746247003,-256.25083744,0.00031731,2]
[341300971,1730746247019,-4519.53064978,0.00031731,2]
[341300973,1730746247029,-748.672598,0.00031779,2]
[341300975,1730746247038,-1242.49,0.00031779,2]
[341300977,1730746247048,-500.0,0.0003178,3]
[341300979,1730746247058,-500.0,0.0003178,3]
[341300981,1730746247069,-1144.49,0.0003178,3]
[341300983,1730746247079,-1853.64,0.0003178,3]
[341300985,1730746247089,-500.0,0.0003178,3]
[341300987,1730746247099,-500.0,0.0003178,3]
[341300989,1730746247109,-591.62557201,0.0003178,3]
[341300992,1730746247120,-2331.73487485,0.0003178,3]
[341301021,1730746247407,-5773.09955314,0.0003178,3]
[341301024,1730746247417,-500.0,0.00031875,3]
[341301026,1730746247426,-150.0,0.00032,2]
[341301028,1730746247436,-1242.49,0.00032053,2]
[341301030,1730746247447,-340.44,0.00032054,3]
[341301032,1730746247457,-500.0,0.00032054,3]
[341301034,1730746247467,-1144.49,0.00032054,3]
[341301035,1730746247477,-1853.64,0.00032054,3]
[341301038,1730746247488,-500.0,0.00032054,3]
[341301040,1730746247498,-500.0,0.00032054,3]